[Event "XLI Barbera del Valles Open 2018"]
[Site "Barbera del Valles"]
[Date "2018.07.07"]
[Round "4"]
[White "Guseinov, Gadir"]
[Black "Martinez Alcantara, Jose Eduardo"]
[Result "1/2-1/2"]
[ECO "B23"]
[WhiteElo "2654"]
[BlackElo "2545"]
[Annotator "ChessBase"]
[PlyCount "130"]
[EventDate "2018.07.04"]
[EventType "swiss"]
[EventCountry "ESP"]
[SourceTitle "playchess.com"]
[Source "ChessBase"]
[SourceQuality "1"]
[TimeControl "5400+30"]

1. e4 {[%emt 0:00:00]} c5 {[%emt 0:00:14]} 2. Nc3 {[%emt 0:00:00]} d6 {[%emt 0:00:04]} 3. d4 {[%emt 0:00:00]} cxd4 {[%emt 0:00:08]} 4. Qxd4 {[%emt 0:00:00]} Nc6 {[%emt 0:03:27]} 5. Qd2 {[%emt 0:00:23]} Nf6 {[%emt 0:05:14]} 6. b3 {[%emt 0:00:40]} a6 {[%emt 0:00:07]} 7. Bb2 {[%emt 0:00:14]} e6 {[%emt 0:00:06]} 8. f3 {[%emt 0:01:33]} b5 {[%emt 0:02:36]} 9. O-O-O {[%emt 0:01:47]} Be7 {[%emt 0:01:11]} 10. g4 {[%emt 0:00:25]} Nxg4 {[%emt 0:04:56]} 11. Nh3 {[%emt 0:00:10]} Nf6 {[%emt 0:01:31]} 12. Rg1 {[%emt 0:00:11]} Rg8 {[%emt 0:04:22]} 13. Kb1 {[%emt 0:01:55]} Qb6 {[%emt 0:01:36]} 14. f4 {[%emt 0:02:49]} Bb7 {[%emt 0:02:35]} 15. f5 {[%emt 0:08:55]} Ne5 {[%emt 0:11:19]} 16. Bg2 {[%emt 0:14:19]} Nfg4 {[%emt 0:14:17]} 17. fxe6 {[%emt 0:07:13]} fxe6 {[%emt 0:00:02]} 18. Ng5 {[%emt 0:00:19]} Bxg5 {[%emt 0:09:08]} 19. Qxg5 {[%emt 0:02:38]} h6 {[%emt 0:00:08]} 20. Qh4 {[%emt 0:04:50]} g5 {[%emt 0:00:22]} 21. Qh5+ {[%emt 0:05:44]} Rg6 {[%emt 0:00:44]} 22. Ne2 {[%emt 0:03:34]} O-O-O {[%emt 0:02:38]} 23. Ng3 {[%emt 0:16:45]} Kb8 {[%emt 0:12:37]} 24. h3 {[%emt 0:01:13]} Nf6 {[%emt 0:00:03]} 25. Qe2 {[%emt 0:00:03]} Qc7 {[%emt 0:01:09]} 26. Rd2 {[%emt 0:01:18]} Nfd7 {[%emt 0:06:25]} 27. Rgd1 {[%emt 0:03:27]} Nf7 {[%emt 0:00:13]} 28. Bf3 {[%emt 0:00:28]} Nde5 {[%emt 0:00:34]} 29. Bh5 {[%emt 0:00:18]} Rgg8 {[%emt 0:00:01]} 30. Qf2 {[%emt 0:01:32]} g4 {[%emt 0:03:19]} 31. Bxg4 {[%emt 0:14:44]} Nxg4 {[%emt 0:02:08]} 32. hxg4 {[%emt 0:00:02]} Rxg4 {[%emt 0:00:53]} 33. e5 {[%emt 0:01:40]} d5 {[%emt 0:00:38]} 34. Nh5 {[%emt 0:00:39]} Ng5 {[%emt 0:00:52]} 35. Nf6 {[%emt 0:00:27]} Ne4 {[%emt 0:00:07]} 36. Nxe4 {[%emt 0:00:24]} Rxe4 {[%emt 0:00:02]} 37. Qf6 {[%emt 0:00:17]} Bc8 {[%emt 0:01:33]} 38. Qxh6 {[%emt 0:00:22]} Rg8 {[%emt 0:00:09]} 39. Rf2 {[%emt 0:01:09]} b4 {[%emt 0:00:17]} 40. Qd2 {[%emt 0:00:15]} a5 {[%emt 0:00:13]} 41. Re2 {[%emt 0:01:00]} Rh4 {[%emt 0:04:30]} 42. Rg2 {[%emt 0:00:46]} Rf8 {[%emt 0:03:38]} 43. Bd4 {[%emt 0:00:03]} Re4 {[%emt 0:00:59]} 44. Re2 {[%emt 0:00:23]} Rh4 {[%emt 0:02:31]} 45. Rf2 {[%emt 0:00:09]} Rg8 {[%emt 0:00:23]} 46. Rf4 {[%emt 0:00:57]} Rxf4 {[%emt 0:00:36]} 47. Qxf4 {[%emt 0:00:01]} Ba6 {[%emt 0:00:10]} 48. Qf2 {[%emt 0:00:26]} Kb7 {[%emt 0:00:08]} 49. Rg1 {[%emt 0:00:49]} Rxg1+ {[%emt 0:00:29]} 50. Qxg1 {[%emt 0:00:01]} Be2 {[%emt 0:00:10]} 51. Kb2 {[%emt 0:00:21]} Bf3 {[%emt 0:00:20]} 52. c3 {[%emt 0:00:55]} Be4 {[%emt 0:00:42]} 53. Qe1 {[%emt 0:00:01]} bxc3+ {[%emt 0:00:28]} 54. Bxc3 {[%emt 0:00:04]} a4 {[%emt 0:00:13]} 55. Bd4 {[%emt 0:00:37]} axb3 {[%emt 0:00:45]} 56. axb3 {[%emt 0:01:45]} Qc6 {[%emt 0:01:03]} 57. Qb4+ {[%emt 0:00:10]} Kc8 {[%emt 0:00:01]} 58. Qf8+ {[%emt 0:01:33]} Kb7 {[%emt 0:00:19]} 59. Qe7+ {[%emt 0:00:17]} Kc8 {[%emt 0:00:27]} 60. Bc5 {[%emt 0:00:05]} Qd7 {[%emt 0:00:49]} 61. Qf8+ {[%emt 0:00:27]} Kb7 {[%emt 0:01:41]} 62. Bd6 {[%emt 0:01:58]} Qc8 {[%emt 0:00:11]} 63. Qe7+ {[%emt 0:00:10]} Kb6 {[%emt 0:00:07]} 64. Qg5 {[%emt 0:00:38]} d4 {[%emt 0:00:25]} 65. Qd2 {[%emt 0:00:37]} Qc3+ {[%emt 0:00:07]} 1/2-1/2

[Event "XLI Barbera del Valles Open 2018"]
[Site "Barbera del Valles"]
[Date "2018.07.07"]
[Round "4"]
[White "Guliyev, Namig"]
[Black "Valenzuela Gomez, Fernando"]
[Result "1/2-1/2"]
[ECO "B92"]
[WhiteElo "2545"]
[BlackElo "2389"]
[Annotator "ChessBase"]
[PlyCount "177"]
[EventDate "2018.07.04"]
[EventType "swiss"]
[EventCountry "ESP"]
[SourceTitle "playchess.com"]
[Source "ChessBase"]
[SourceQuality "1"]
[TimeControl "5400+30"]

1. e4 {[%emt 0:00:00]} c5 {[%emt 0:03:15]} 2. Nf3 {[%emt 0:00:00]} d6 {[%emt 0:00:25]} 3. d4 {[%emt 0:00:15]} cxd4 {[%emt 0:00:15]} 4. Nxd4 {[%emt 0:00:21]} Nf6 {[%emt 0:00:36]} 5. Nc3 {[%emt 0:00:08]} a6 {[%emt 0:00:12]} 6. Be3 {[%emt 0:01:03]} Ng4 {[%emt 0:00:24]} 7. Bc1 {[%emt 0:00:05]} Nf6 {[%emt 0:00:06]} 8. Be2 {[%emt 0:00:15]} Nbd7 {[%emt 0:00:03]} 9. O-O {[%emt 0:03:17]} g6 {[%emt 0:00:11]} 10. a4 {[%emt 0:00:19]} b6 {[%emt 0:02:03]} 11. f4 {[%emt 0:02:46]} Bb7 {[%emt 0:09:09]} 12. Bf3 {[%emt 0:00:11]} e5 {[%emt 0:01:06]} 13. Nde2 {[%emt 0:02:51]} Qc7 {[%emt 0:01:08]} 14. g4 {[%emt 0:03:08]} d5 15. exd5 {[%emt 0:01:09]} e4 {[%emt 0:35:38]} 16. Nxe4 {[%emt 0:02:10]} Nxe4 {[%emt 0:00:46]} 17. Bxe4 {[%emt 0:00:07]} Nf6 {[%emt 0:00:35]} 18. Bf3 {[%emt 0:00:40]} O-O-O {[%emt 0:05:27]} 19. Nd4 {[%emt 0:08:35]} Nxd5 {[%emt 0:05:44]} 20. c3 {[%emt 0:00:20]} Bc5 {[%emt 0:02:38]} 21. Qe2 {[%emt 0:05:42]} Rhe8 {[%emt 0:03:24]} 22. Qf2 {[%emt 0:00:13]} Kb8 {[%emt 0:04:31]} 23. Bg2 {[%emt 0:01:59]} Nb4 {[%emt 0:01:39]} 24. Bxb7 {[%emt 0:05:00]} Qxb7 {[%emt 0:01:18]} 25. f5 {[%emt 0:01:34]} Ka8 {[%emt 0:03:07]} 26. Be3 {[%emt 0:08:47]} Rxe3 {[%emt 0:04:15]} 27. Qxe3 {[%emt 0:03:24]} Nc2 {[%emt 0:00:15]} 28. Nxc2 {[%emt 0:00:15]} Qe4 {[%emt 0:04:53]} 29. Qxc5 {[%emt 0:02:03]} Qxg4+ {[%emt 0:00:50]} 30. Kh1 {[%emt 0:00:07]} bxc5 {[%emt 0:01:24]} 31. Rf2 {[%emt 0:00:18]} Qe4+ {[%emt 0:00:55]} 32. Kg1 {[%emt 0:00:20]} Qg4+ {[%emt 0:01:33]} 33. Kh1 {[%emt 0:00:40]} gxf5 {[%emt 0:01:14]} 34. Ne3 {[%emt 0:00:27]} Qe4+ {[%emt 0:00:35]} 35. Ng2 {[%emt 0:00:05]} Rg8 {[%emt 0:01:05]} 36. a5 {[%emt 0:01:09]} h5 {[%emt 0:02:09]} 37. Re1 {[%emt 0:00:46]} Qc6 {[%emt 0:00:41]} 38. h4 {[%emt 0:01:42]} f4 {[%emt 0:01:28]} 39. Ref1 {[%emt 0:01:42]} Rg3 {[%emt 0:00:54]} 40. Kh2 {[%emt 0:00:27]} Rg4 {[%emt 0:00:58]} 41. Rf3 {[%emt 0:00:14]} Qe4 {[%emt 0:01:09]} 42. R1f2 {[%emt 0:00:09]} Kb7 {[%emt 0:00:50]} 43. b3 {[%emt 0:00:40]} Rg3 {[%emt 0:00:58]} 44. Rxg3 {[%emt 0:00:22]} fxg3+ {[%emt 0:00:02]} 45. Kxg3 {[%emt 0:00:08]} Qe5+ {[%emt 0:00:18]} 46. Nf4 {[%emt 0:00:57]} Qxc3+ {[%emt 0:00:04]} 47. Rf3 {[%emt 0:00:05]} Qg7+ {[%emt 0:00:32]} 48. Kf2 {[%emt 0:00:13]} Qg4 {[%emt 0:00:33]} 49. Ng2 {[%emt 0:00:12]} Qd4+ {[%emt 0:00:32]} 50. Kg3 {[%emt 0:00:22]} f5 {[%emt 0:00:38]} 51. Nf4 {[%emt 0:00:21]} Qg7+ {[%emt 0:00:25]} 52. Kf2 {[%emt 0:00:05]} Qc7 {[%emt 0:00:29]} 53. Kg2 {[%emt 0:02:41]} Qe7 {[%emt 0:00:42]} 54. Nxh5 {[%emt 0:00:52]} Qxh4 {[%emt 0:00:21]} 55. Rxf5 {[%emt 0:00:07]} Qe4+ {[%emt 0:00:23]} 56. Rf3 {[%emt 0:00:05]} Qe2+ {[%emt 0:00:13]} 57. Kg3 {[%emt 0:00:09]} Qe1+ {[%emt 0:00:09]} 58. Kg4 {[%emt 0:01:35]} Qxa5 {[%emt 0:00:19]} 59. Nf4 {[%emt 0:01:14]} Kc6 {[%emt 0:00:28]} 60. Nd3 {[%emt 0:00:49]} Qc3 {[%emt 0:00:55]} 61. Kf5 {[%emt 0:00:10]} Qc2 {[%emt 0:00:43]} 62. Ke4 {[%emt 0:01:05]} Kb5 {[%emt 0:00:28]} 63. Ke3 {[%emt 0:00:36]} Qxb3 {[%emt 0:00:34]} 64. Rf5 {[%emt 0:00:22]} Qe6+ {[%emt 0:00:31]} 65. Re5 {[%emt 0:00:02]} Qh6+ {[%emt 0:00:28]} 66. Ke4 {[%emt 0:00:03]} Qh4+ {[%emt 0:00:37]} 67. Ke3 {[%emt 0:00:05]} Qg3+ {[%emt 0:00:43]} 68. Ke4 {[%emt 0:00:04]} Qg2+ {[%emt 0:00:29]} 69. Ke3 {[%emt 0:00:08]} Qg1+ {[%emt 0:00:06]} 70. Kd2 {[%emt 0:01:35]} Kc4 {[%emt 0:01:30]} 71. Re4+ {[%emt 0:00:04]} Kb3 {[%emt 0:00:50]} 72. Nc1+ {[%emt 0:00:04]} Ka3 {[%emt 0:00:24]} 73. Rc4 {[%emt 0:00:44]} Qf1 {[%emt 0:00:49]} 74. Nd3 {[%emt 0:00:34]} Qg2+ {[%emt 0:00:07]} 75. Kc3 {[%emt 0:00:23]} Qg7+ {[%emt 0:00:04]} 76. Kc2 {[%emt 0:00:16]} Qg2+ {[%emt 0:00:24]} 77. Kc3 {[%emt 0:00:04]} a5 {[%emt 0:01:33]} 78. Nxc5 {[%emt 0:00:17]} Qg7+ {[%emt 0:00:21]} 79. Kc2 {[%emt 0:00:12]} Qg6+ {[%emt 0:00:29]} 80. Kc3 {[%emt 0:00:08]} Qf6+ {[%emt 0:00:08]} 81. Kc2 {[%emt 0:00:07]} Qf5+ {[%emt 0:00:15]} 82. Kc3 {[%emt 0:00:06]} Qe5+ {[%emt 0:00:10]} 83. Kc2 {[%emt 0:00:06]} Qe2+ {[%emt 0:00:45]} 84. Kc3 {[%emt 0:00:08]} Qb2+ {[%emt 0:00:41]} 85. Kd3 {[%emt 0:00:08]} Qb1+ {[%emt 0:00:35]} 86. Kc3 {[%emt 0:00:09]} Qa1+ {[%emt 0:01:07]} 87. Kc2 {[%emt 0:00:04]} Qa2+ {[%emt 0:00:20]} 88. Kc3 {[%emt 0:00:14]} Qb2+ 89. Kd3 1/2-1/2

[Event "XLI Barbera del Valles Open 2018"]
[Site "Barbera del Valles"]
[Date "2018.07.07"]
[Round "4"]
[White "Oliva Castaneda, Kevel"]
[Black "Neelash Saha"]
[Result "1/2-1/2"]
[ECO "A57"]
[WhiteElo "2491"]
[BlackElo "2319"]
[Annotator "ChessBase"]
[PlyCount "67"]
[EventDate "2018.07.04"]
[EventType "swiss"]
[EventCountry "ESP"]
[SourceTitle "playchess.com"]
[Source "ChessBase"]
[SourceQuality "1"]
[TimeControl "5400+30"]

1. d4 {[%emt 0:00:00]} Nf6 {[%emt 0:02:14]} 2. c4 {[%emt 0:00:10]} c5 {[%emt 0:00:29]} 3. d5 {[%emt 0:00:07]} b5 {[%emt 0:00:04]} 4. Qc2 {[%emt 0:00:37]} bxc4 {[%emt 0:01:12]} 5. e4 {[%emt 0:00:07]} g6 {[%emt 0:00:36]} 6. Bxc4 {[%emt 0:00:14]} d6 {[%emt 0:00:04]} 7. Nf3 {[%emt 0:00:12]} Bg7 {[%emt 0:00:08]} 8. O-O {[%emt 0:00:09]} Nbd7 {[%emt 0:00:08]} 9. Re1 {[%emt 0:00:15]} Ng4 {[%emt 0:08:21]} 10. Bf1 {[%emt 0:01:05]} O-O {[%emt 0:00:31]} 11. h3 {[%emt 0:02:01]} Nge5 {[%emt 0:00:21]} 12. Nfd2 {[%emt 0:00:08]} g5 {[%emt 0:02:24]} 13. Nc3 {[%emt 0:00:36]} Nb6 {[%emt 0:02:00]} 14. a4 {[%emt 0:00:45]} Rb8 {[%emt 0:01:03]} 15. a5 {[%emt 0:03:37]} Na8 {[%emt 0:00:30]} 16. Nc4 {[%emt 0:00:57]} Nxc4 {[%emt 0:01:28]} 17. Bxc4 {[%emt 0:00:07]} h6 {[%emt 0:01:23]} 18. f4 {[%emt 0:01:55]} Rb4 {[%emt 0:07:57]} 19. b3 {[%emt 0:02:17]} gxf4 {[%emt 0:09:44]} 20. Bxf4 {[%emt 0:00:25]} e5 {[%emt 0:00:04]} 21. Bd2 {[%emt 0:03:28]} Rb7 {[%emt 0:04:25]} 22. Rf1 {[%emt 0:03:03]} Nc7 {[%emt 0:02:55]} 23. Qd3 {[%emt 0:09:12]} Bd7 {[%emt 0:03:53]} 24. Rae1 {[%emt 0:09:16]} Ne8 {[%emt 0:01:09]} 25. a6 {[%emt 0:00:34]} Rb8 {[%emt 0:02:43]} 26. Ne2 {[%emt 0:01:15]} Kh7 {[%emt 0:04:11]} 27. Rf3 {[%emt 0:04:35]} Qe7 {[%emt 0:01:53]} 28. Ng3 {[%emt 0:02:01]} Bf6 {[%emt 0:00:48]} 29. Ref1 {[%emt 0:13:57]} Bg5 {[%emt 0:13:11]} 30. Ba5 {[%emt 0:12:18]} Ng7 {[%emt 0:03:46]} 31. Kh1 {[%emt 0:01:13]} Kh8 {[%emt 0:01:26]} 32. R1f2 {[%emt 0:01:51]} h5 {[%emt 0:08:02]} 33. Bd2 {[%emt 0:06:58]} h4 {[%emt 0:04:51]} 34. Nf1 {[%emt 0:01:50]} 1/2-1/2

[Event "XLI Barbera del Valles Open 2018"]
[Site "Barbera del Valles"]
[Date "2018.07.07"]
[Round "4"]
[White "Iniyan, P."]
[Black "Ortiz Suarez, Isan Reynaldo"]
[Result "1-0"]
[ECO "E21"]
[WhiteElo "2451"]
[BlackElo "2548"]
[Annotator "ChessBase"]
[PlyCount "91"]
[EventDate "2018.07.04"]
[EventType "swiss"]
[EventCountry "ESP"]
[SourceTitle "playchess.com"]
[Source "ChessBase"]
[SourceQuality "1"]
[TimeControl "5400+30"]

1. d4 {[%emt 0:00:00]} Nf6 {[%emt 0:00:00]} 2. c4 {[%emt 0:00:00]} e6 {[%emt 0:00:00]} 3. Nc3 {[%emt 0:00:00]} Bb4 {[%emt 0:00:00]} 4. Nf3 {[%emt 0:00:00]} O-O {[%emt 0:00:17]} 5. Bg5 {[%emt 0:00:07]} c5 {[%emt 0:00:24]} 6. e3 {[%emt 0:00:11]} h6 {[%emt 0:00:12]} 7. Bh4 {[%emt 0:01:41]} cxd4 {[%emt 0:00:20]} 8. exd4 {[%emt 0:00:16]} d5 {[%emt 0:00:17]} 9. Bd3 {[%emt 0:07:51]} dxc4 {[%emt 0:04:13]} 10. Bxc4 {[%emt 0:00:28]} Be7 {[%emt 0:00:14]} 11. O-O {[%emt 0:02:43]} Nc6 {[%emt 0:00:51]} 12. a3 {[%emt 0:02:12]} Nd5 {[%emt 0:07:41]} 13. Bg3 {[%emt 0:00:51]} b6 {[%emt 0:01:08]} 14. Nxd5 {[%emt 0:05:59]} exd5 {[%emt 0:00:12]} 15. Bb5 {[%emt 0:00:12]} Na5 {[%emt 0:06:51]} 16. Rc1 {[%emt 0:09:25]} Bd6 {[%emt 0:01:20]} 17. Ne5 {[%emt 0:11:59]} a6 {[%emt 0:16:13]} 18. Bd3 {[%emt 0:01:04]} Be6 {[%emt 0:01:39]} 19. Bb1 {[%emt 0:06:27]} Bxe5 {[%emt 0:02:06]} 20. dxe5 {[%emt 0:03:09]} Qd7 {[%emt 0:01:14]} 21. Qd3 {[%emt 0:02:23]} g6 {[%emt 0:00:32]} 22. Qe3 {[%emt 0:03:47]} Kh7 {[%emt 0:00:36]} 23. Qxb6 {[%emt 0:18:31]} Nc4 {[%emt 0:00:33]} 24. Qd4 {[%emt 0:00:07]} Rab8 {[%emt 0:02:00]} 25. Bd3 {[%emt 0:04:47]} Nxb2 {[%emt 0:04:36]} 26. Bxa6 {[%emt 0:00:26]} Rb3 {[%emt 0:01:02]} 27. Rc3 {[%emt 0:09:05]} Rxc3 {[%emt 0:01:49]} 28. Qxc3 {[%emt 0:00:08]} Nc4 {[%emt 0:00:20]} 29. Qb4 {[%emt 0:03:45]} Ra8 {[%emt 0:11:48]} 30. Bb5 {[%emt 0:00:07]} Qa7 {[%emt 0:00:06]} 31. a4 {[%emt 0:00:08]} Rc8 {[%emt 0:01:19]} 32. Rc1 {[%emt 0:01:45]} Qd4 {[%emt 0:02:15]} 33. h3 {[%emt 0:00:13]} h5 {[%emt 0:01:56]} 34. Qe7 {[%emt 0:00:39]} Qd2 {[%emt 0:00:41]} 35. Rf1 {[%emt 0:00:07]} d4 {[%emt 0:08:24]} 36. Be8 {[%emt 0:00:36]} Rxe8 {[%emt 0:00:03]} 37. Qxe8 {[%emt 0:00:11]} d3 {[%emt 0:00:20]} 38. Qd8 {[%emt 0:01:38]} Qe2 {[%emt 0:08:18]} 39. Bh4 {[%emt 0:03:50]} Nd2 {[%emt 0:00:18]} 40. Ra1 {[%emt 0:00:22]} Ne4 {[%emt 0:00:17]} 41. f3 {[%emt 0:00:38]} g5 {[%emt 0:06:35]} 42. Re1 {[%emt 0:01:04]} Qc2 {[%emt 0:00:53]} 43. Rxe4 {[%emt 0:00:11]} gxh4 {[%emt 0:01:10]} 44. Rxh4 {[%emt 0:00:28]} Qc5+ {[%emt 0:03:07]} 45. Kh1 {[%emt 0:00:05]} Qxe5 {[%emt 0:00:24]} 46. Qxd3+ 1-0

[Event "XLI Barbera del Valles Open 2018"]
[Site "Barbera del Valles"]
[Date "2018.07.07"]
[Round "4"]
[White "Perez Mitjans, Orelvis"]
[Black "Asis, Tommy"]
[Result "1/2-1/2"]
[ECO "B51"]
[WhiteElo "2399"]
[BlackElo "2538"]
[Annotator "ChessBase"]
[PlyCount "111"]
[EventDate "2018.07.04"]
[EventType "swiss"]
[EventCountry "ESP"]
[SourceTitle "playchess.com"]
[Source "ChessBase"]
[SourceQuality "1"]
[TimeControl "5400+30"]

1. e4 {[%emt 0:02:36]} c5 {[%emt 0:14:33]} 2. Nf3 {[%emt 0:03:45]} d6 {[%emt 0:00:06]} 3. Bb5+ {[%emt 0:00:05]} Nd7 {[%emt 0:00:04]} 4. d4 {[%emt 0:00:08]} cxd4 {[%emt 0:00:04]} 5. Qxd4 {[%emt 0:00:04]} a6 {[%emt 0:00:07]} 6. Bxd7+ {[%emt 0:00:05]} Bxd7 {[%emt 0:00:05]} 7. Nc3 {[%emt 0:00:07]} e5 {[%emt 0:00:05]} 8. Qd3 {[%emt 0:00:04]} Rc8 {[%emt 0:00:05]} 9. O-O {[%emt 0:02:28]} h6 {[%emt 0:01:59]} 10. Rd1 {[%emt 0:00:59]} Nf6 {[%emt 0:00:19]} 11. Nd2 {[%emt 0:07:47]} Qc7 {[%emt 0:00:15]} 12. Nf1 {[%emt 0:06:47]} Bg4 {[%emt 0:01:50]} 13. f3 {[%emt 0:01:33]} Be6 {[%emt 0:00:05]} 14. Ne3 {[%emt 0:00:56]} Be7 {[%emt 0:00:05]} 15. Bd2 {[%emt 0:05:57]} O-O {[%emt 0:00:07]} 16. a4 {[%emt 0:07:01]} Rfd8 {[%emt 0:03:14]} 17. Ncd5 {[%emt 0:04:24]} Nxd5 {[%emt 0:01:21]} 18. exd5 {[%emt 0:00:06]} Bd7 {[%emt 0:00:09]} 19. a5 {[%emt 0:04:27]} Qc5 {[%emt 0:21:24]} 20. Kh1 {[%emt 0:16:58]} Bg5 {[%emt 0:12:57]} 21. c3 {[%emt 0:03:07]} Re8 {[%emt 0:31:37]} 22. Nf5 {[%emt 0:20:43]} Bxd2 {[%emt 0:01:16]} 23. Rxd2 {[%emt 0:00:03]} Bxf5 {[%emt 0:00:49]} 24. Qxf5 {[%emt 0:00:06]} Qb5 {[%emt 0:00:18]} 25. Qc2 {[%emt 0:04:25]} Rc5 {[%emt 0:00:18]} 26. Qd1 {[%emt 0:01:39]} e4 {[%emt 0:02:23]} 27. fxe4 {[%emt 0:00:45]} Rxe4 {[%emt 0:00:04]} 28. Qf3 {[%emt 0:00:22]} Rxd5 {[%emt 0:02:18]} 29. Rf1 {[%emt 0:01:14]} Qxf1+ {[%emt 0:00:08]} 30. Qxf1 {[%emt 0:00:07]} Rxd2 {[%emt 0:00:04]} 31. h3 {[%emt 0:00:12]} Rxb2 {[%emt 0:02:06]} 32. Qf5 {[%emt 0:01:07]} Re6 {[%emt 0:00:06]} 33. h4 {[%emt 0:00:37]} g6 {[%emt 0:00:37]} 34. Qf4 {[%emt 0:00:19]} h5 {[%emt 0:00:20]} 35. c4 {[%emt 0:00:33]} Rbe2 {[%emt 0:04:00]} 36. Qf3 {[%emt 0:02:15]} R2e4 {[%emt 0:00:17]} 37. Kg1 {[%emt 0:00:09]} Re7 {[%emt 0:00:53]} 38. Qd3 {[%emt 0:00:21]} Rxh4 {[%emt 0:00:29]} 39. c5 {[%emt 0:00:40]} d5 {[%emt 0:00:28]} 40. c6 {[%emt 0:01:13]} bxc6 {[%emt 0:00:43]} 41. Qxa6 {[%emt 0:00:05]} Re1+ {[%emt 0:01:05]} 42. Kf2 {[%emt 0:00:05]} Ra1 {[%emt 0:00:05]} 43. Qxc6 {[%emt 0:02:34]} Rf4+ {[%emt 0:00:32]} 44. Kg3 {[%emt 0:00:09]} Rg4+ {[%emt 0:00:02]} 45. Kh2 {[%emt 0:00:07]} Rxa5 {[%emt 0:01:23]} 46. Qc8+ {[%emt 0:00:58]} Kh7 {[%emt 0:00:04]} 47. Qc7 {[%emt 0:00:02]} Raa4 {[%emt 0:00:19]} 48. Qxf7+ {[%emt 0:00:04]} Kh6 {[%emt 0:00:01]} 49. Qf8+ {[%emt 0:00:38]} Kg5 {[%emt 0:00:03]} 50. Qd8+ {[%emt 0:00:20]} Kf4 {[%emt 0:00:20]} 51. Qxd5 {[%emt 0:02:21]} Re4 {[%emt 0:00:40]} 52. Qd6+ {[%emt 0:00:51]} Re5 {[%emt 0:00:56]} 53. Qd4+ {[%emt 0:00:52]} Kf5 {[%emt 0:00:14]} 54. Qd7+ {[%emt 0:00:13]} Kf6 {[%emt 0:00:58]} 55. Qd6+ {[%emt 0:00:15]} Kf5 {[%emt 0:00:36]} 56. Qf8+ {[%emt 0:00:29]} 1/2-1/2

[Event "XLI Barbera del Valles Open 2018"]
[Site "Barbera del Valles"]
[Date "2018.07.07"]
[Round "4"]
[White "Frayna, Janelle Mae"]
[Black "Karthik Venkataraman"]
[Result "1/2-1/2"]
[ECO "A37"]
[WhiteElo "2315"]
[BlackElo "2514"]
[Annotator "ChessBase"]
[PlyCount "61"]
[EventDate "2018.07.04"]
[EventType "swiss"]
[EventCountry "ESP"]
[SourceTitle "playchess.com"]
[Source "ChessBase"]
[SourceQuality "1"]
[TimeControl "5400+30"]

1. Nf3 c5 2. c4 Nc6 3. g3 g6 4. Bg2 Bg7 5. Nc3 e6 6. d4 cxd4 7. Nb5 d5 8. cxd5 exd5 9. Nbxd4 Nge7 10. O-O O-O 11. Be3 Re8 12. Qd2 Nf5 13. Nxc6 bxc6 14. Bc5 a5 15. e3 Nd6 16. Bd4 Ne4 17. Qc2 Bd7 18. Rac1 Bf8 19. Ne5 c5 20. Nxd7 Qxd7 21. Bc3 Qf5 22. Rcd1 a4 23. Qd3 Rad8 24. Qb5 a3 25. Bxe4 Qxe4 26. bxa3 Ra8 27. Qc6 d4 28. Qxe4 Rxe4 29. exd4 Rxa3 30. Ba1 cxd4 31. Bxd4 1/2-1/2

[Event "XLI Barbera del Valles Open 2018"]
[Site "Barbera del Valles"]
[Date "2018.07.07"]
[Round "4"]
[White "Akshita, Gorti"]
[Black "Manolache, Marius"]
[Result "1/2-1/2"]
[ECO "E71"]
[WhiteElo "2255"]
[BlackElo "2494"]
[Annotator "ChessBase"]
[PlyCount "104"]
[EventDate "2018.07.04"]
[EventType "swiss"]
[EventCountry "ESP"]
[SourceTitle "playchess.com"]
[Source "ChessBase"]
[SourceQuality "1"]
[TimeControl "5400+30"]

1. d4 {[%emt 0:00:00]} Nf6 {[%emt 0:00:00]} 2. c4 {[%emt 0:00:00]} d6 {[%emt 0:00:00]} 3. Nc3 {[%emt 0:00:25]} g6 {[%emt 0:00:13]} 4. e4 {[%emt 0:00:13]} Bg7 {[%emt 0:00:06]} 5. h3 {[%emt 0:00:18]} O-O {[%emt 0:01:37]} 6. Be3 {[%emt 0:00:20]} Na6 {[%emt 0:00:50]} 7. Bd3 {[%emt 0:01:02]} e5 {[%emt 0:02:14]} 8. d5 {[%emt 0:02:33]} Nc5 {[%emt 0:00:13]} 9. Bc2 {[%emt 0:00:28]} a5 {[%emt 0:00:15]} 10. Qd2 {[%emt 0:00:24]} Nfd7 {[%emt 0:04:01]} 11. g4 {[%emt 0:02:00]} Nb6 {[%emt 0:00:38]} 12. Qe2 {[%emt 0:01:01]} f5 {[%emt 0:05:15]} 13. gxf5 {[%emt 0:03:24]} gxf5 {[%emt 0:00:07]} 14. O-O-O {[%emt 0:04:59]} Nxe4 15. Nxe4 {[%emt 0:05:23]} fxe4 {[%emt 0:04:11]} 16. Bxe4 {[%emt 0:00:39]} Qh4 {[%emt 0:00:20]} 17. Qc2 {[%emt 0:06:57]} Bd7 {[%emt 0:18:44]} 18. Nf3 {[%emt 0:07:02]} Rxf3 {[%emt 0:02:12]} 19. Bxf3 {[%emt 0:00:30]} Nxc4 {[%emt 0:00:13]} 20. Rdg1 {[%emt 0:07:01]} Nxe3 {[%emt 0:05:08]} 21. fxe3 {[%emt 0:00:10]} Rf8 {[%emt 0:01:29]} 22. Bg4 {[%emt 0:03:33]} Be8 {[%emt 0:00:06]} 23. Bf5 {[%emt 0:06:09]} Kh8 {[%emt 0:04:16]} 24. Rg4 {[%emt 0:07:09]} Qh6 {[%emt 0:00:19]} 25. Rhg1 {[%emt 0:02:50]} Qxe3+ {[%emt 0:03:14]} 26. Kb1 {[%emt 0:00:30]} Rf7 {[%emt 0:00:24]} 27. Bxh7 {[%emt 0:02:12]} Bd7 {[%emt 0:07:41]} 28. R4g2 {[%emt 0:06:24]} Bxh3 {[%emt 0:00:19]} 29. Rg3 {[%emt 0:01:02]} Qxg3 {[%emt 0:08:40]} 30. Rxg3 {[%emt 0:00:05]} Rf1+ {[%emt 0:00:05]} 31. Qc1 Rxc1+ {[%emt 0:00:00]} 32. Kxc1 {[%emt 0:00:06]} Bd7 {[%emt 0:02:49]} 33. Be4 {[%emt 0:01:33]} c5 {[%emt 0:02:09]} 34. dxc6 {[%emt 0:12:56]} bxc6 {[%emt 0:00:05]} 35. Rb3 {[%emt 0:00:20]} Kg8 {[%emt 0:05:52]} 36. Rb7 {[%emt 0:00:58]} Be8 {[%emt 0:00:09]} 37. Rb8 {[%emt 0:06:32]} Kf7 {[%emt 0:00:09]} 38. Bg6+ {[%emt 0:00:25]} Kxg6 {[%emt 0:00:05]} 39. Rxe8 {[%emt 0:00:03]} Kf5 {[%emt 0:02:26]} 40. Ra8 {[%emt 0:00:08]} e4 {[%emt 0:03:09]} 41. Rxa5+ {[%emt 0:00:51]} Ke6 {[%emt 0:01:17]} 42. Ra8 {[%emt 0:01:30]} d5 {[%emt 0:00:49]} 43. a4 {[%emt 0:01:51]} Bh6+ {[%emt 0:00:27]} 44. Kd1 {[%emt 0:01:52]} Kd6 {[%emt 0:00:56]} 45. Rb8 {[%emt 0:03:26]} Kc7 {[%emt 0:01:07]} 46. Rb3 {[%emt 0:01:01]} Bf8 47. a5 {[%emt 0:01:57]} Bc5 {[%emt 0:00:31]} 48. a6 {[%emt 0:00:38]} Bb6 {[%emt 0:00:04]} 49. Rh3 {[%emt 0:00:17]} Ba7 {[%emt 0:00:32]} 50. Rb3 {[%emt 0:00:24]} Bb6 {[%emt 0:00:12]} 51. Rh3 {[%emt 0:00:10]} Ba7 {[%emt 0:03:27]} 52. Rb3 {[%emt 0:00:13]} Bb6 1/2-1/2